[Event "Cracovia Festival-A 2023"]
[Site "Krakow"]
[Date "2023.12.31"]
[Round "5.32"]
[White "Sofronie, Iulian"]
[Black "Gkavardinas, Antonios"]
[Result "1-0"]
[ECO "D00"]
[WhiteElo "2438"]
[BlackElo "2141"]
[Annotator "RC"]
[PlyCount "103"]
[EventDate "2023.12.24"]
[EventType "swiss"]
[EventCountry "POL"]
[SourceTitle "playchess.com"]
[Source "ChessBase"]
[SourceQuality "1"]
[TimeControl "40/5400+30:1800+30"]

1. d4 {[%emt 0:01:00]} d5 {[%emt 0:00:09]} 2. Bf4 {[%emt 0:00:05]} Nf6 {[%emt 0:00:14]} 3. e3 {[%emt 0:00:05]} c5 {[%emt 0:00:16]} 4. c3 {[%emt 0:00:17]} Nc6 {[%emt 0:00:16]} 5. Nd2 {[%emt 0:00:09]} Bf5 {[%emt 0:00:27]} 6. Ngf3 {[%emt 0:00:13]} e6 {[%emt 0:00:34]} 7. Qb3 {[%emt 0:00:58]} Qb6 {[%emt 0:00:35]} 8. Qxb6 {[%emt 0:00:16]} axb6 {[%emt 0:00:01]} 9. Bb5 {[%emt 0:00:30]} Nd7 {[%emt 0:01:18]} 10. O-O {[%emt 0:00:16]} Be7 {[%emt 0:01:55]} 11. Rfe1 {[%emt 0:00:16]} O-O {[%emt 0:02:14]} 12. h3 {[%emt 0:00:32]} h6 {[%emt 0:01:15]} 13. a3 {[%emt 0:02:45]} Rfc8 {[%emt 0:02:55]} 14. Rad1 {[%emt 0:04:59]} Nf6 {[%emt 0:06:13]} 15. Bf1 {[%emt 0:08:20]} c4 {[%emt 0:12:54]} 16. g4 {[%emt 0:03:08]} Bh7 {[%emt 0:01:07]} 17. Bg2 {[%emt 0:02:43]} Ra5 {[%emt 0:02:37]} 18. Bf1 {[%emt 0:04:08]} Kf8 {[%emt 0:12:30]} 19. Ne5 {[%emt 0:01:30]} Nxe5 {[%emt 0:04:46]} 20. Bxe5 {[%emt 0:01:24]} Nd7 {[%emt 0:04:33]} 21. Bg3 {[%emt 0:00:12]} Raa8 {[%emt 0:02:10]} 22. e4 {[%emt 0:00:32]} b5 {[%emt 0:01:37]} 23. exd5 {[%emt 0:02:31]} exd5 {[%emt 0:00:39]} 24. Bg2 {[%emt 0:00:04]} Nf6 {[%emt 0:01:40]} 25. Be5 {[%emt 0:00:19]} Rd8 {[%emt 0:01:04]} 26. Nf1 {[%emt 0:00:15]} Rd7 {[%emt 0:03:54]} 27. Ne3 {[%emt 0:02:30]} Rad8 {[%emt 0:02:37]} 28. f3 {[%emt 0:07:07]} Bd3 {[%emt 0:03:25]} 29. Kf2 {[%emt 0:00:27]} Ne8 {[%emt 0:00:50]} 30. Bg3 {[%emt 0:00:23]} Bd6 {[%emt 0:06:17]} 31. h4 {[%emt 0:00:45]} g5 {[%emt 0:03:27]} 32. Rh1 {[%emt 0:02:08]} Bxg3+ {[%emt 0:05:30]} 33. Kxg3 {[%emt 0:02:34]} Kg7 {[%emt 0:05:12]} 34. hxg5 {[%emt 0:18:16]} hxg5 {[%emt 0:00:08]} 35. f4 {[%emt 0:03:53]} Nc7 {[%emt 0:04:13]} 36. fxg5 {[%emt 0:06:35]} Ne6 {[%emt 0:00:56]} 37. Rh5 {[%emt 0:00:20]} Bg6 {[%emt 0:03:01]} 38. Nf5+ {[%emt 0:01:17]} Kg8 {[%emt 0:00:10]} 39. Rh6 {[%emt 0:01:54]} Nxg5 {[%emt 0:00:51]} 40. Rdh1 {[%emt 0:00:00]} Nh7 {[%emt 0:00:00]} 41. Bxd5 {[%emt 0:06:17]} Rxd5 {[%emt 0:08:55]} 42. Ne7+ {[%emt 0:00:49]} Kg7 {[%emt 0:00:11]} 43. Nxg6 {[%emt 0:00:08]} Ng5 {[%emt 0:03:20]} 44. Ne7 {[%emt 0:00:30]} Ne4+ {[%emt 0:01:41]} 45. Kf4 {[%emt 0:00:40]} Nf2 {[%emt 0:00:31]} 46. R1h2 {[%emt 0:06:52]} Nd3+ {[%emt 0:02:13]} 47. Kg3 {[%emt 0:00:23]} Rg5 {[%emt 0:00:33]} 48. Nf5+ {[%emt 0:02:51]} Kf8 {[%emt 0:00:14]} 49. Rb6 {[%emt 0:00:32]} Rd7 {[%emt 0:01:46]} 50. Rxb5 {[%emt 0:02:54]} Rc7 {[%emt 0:01:30]} 51. Rd5 {[%emt 0:00:33]} Rc8 {[%emt 0:00:14]} 52. Rh8+ {[%emt 0:00:08]} 1-0

[Event "Cracovia Festival-A 2023"]
[Site "Krakow"]
[Date "2023.12.31"]
[Round "5.33"]
[White "Szczurek, Krzysztof"]
[Black "Loftgaard, Mikkel Vinh"]
[Result "1-0"]
[ECO "B51"]
[WhiteElo "2175"]
[BlackElo "2322"]
[Annotator "RC"]
[PlyCount "61"]
[EventDate "2023.12.24"]
[EventType "swiss"]
[EventCountry "POL"]
[SourceTitle "playchess.com"]
[Source "ChessBase"]
[SourceQuality "1"]
[TimeControl "40/5400+30:1800+30"]

1. e4 c5 {[%emt 0:05:31]} 2. Nf3 {[%emt 0:00:09]} d6 {[%emt 0:00:06]} 3. Bb5+ {[%emt 0:00:04]} Nd7 {[%emt 0:00:39]} 4. c3 {[%emt 0:00:06]} Ngf6 {[%emt 0:02:01]} 5. Qe2 {[%emt 0:00:04]} a6 {[%emt 0:00:11]} 6. Ba4 {[%emt 0:00:05]} b5 {[%emt 0:00:32]} 7. Bc2 {[%emt 0:00:05]} c4 {[%emt 0:02:41]} 8. b3 {[%emt 0:07:05]} Qc7 {[%emt 0:03:56]} 9. bxc4 {[%emt 0:11:43]} bxc4 {[%emt 0:00:16]} 10. a4 {[%emt 0:00:03]} Bb7 {[%emt 0:02:40]} 11. Na3 {[%emt 0:02:08]} Rc8 {[%emt 0:01:32]} 12. O-O {[%emt 0:00:16]} e6 {[%emt 0:03:11]} 13. Rb1 {[%emt 0:04:43]} d5 {[%emt 0:33:16]} 14. e5 {[%emt 0:05:34]} Ng8 {[%emt 0:09:51]} 15. Nd4 {[%emt 0:09:01]} g6 {[%emt 0:12:03]} 16. f4 {[%emt 0:08:27]} Bc5 {[%emt 0:02:59]} 17. Kh1 {[%emt 0:01:54]} Bxd4 {[%emt 0:04:02]} 18. cxd4 {[%emt 0:00:17]} h5 {[%emt 0:00:06]} 19. Bb2 {[%emt 0:01:17]} Ne7 {[%emt 0:01:47]} 20. Bc3 {[%emt 0:01:24]} Nb8 {[%emt 0:02:03]} 21. Bb4 {[%emt 0:02:25]} Nbc6 {[%emt 0:00:18]} 22. Bc5 {[%emt 0:00:19]} Nf5 {[%emt 0:04:22]} 23. Bxf5 {[%emt 0:06:52]} exf5 {[%emt 0:02:13]} 24. Rb6 {[%emt 0:11:34]} Nd8 {[%emt 0:01:37]} 25. e6 {[%emt 0:07:12]} Bc6 {[%emt 0:03:53]} 26. Rxa6 {[%emt 0:00:09]} Nxe6 {[%emt 0:01:09]} 27. Nb5 {[%emt 0:00:23]} Bxb5 {[%emt 0:00:31]} 28. axb5 {[%emt 0:00:25]} Rb8 {[%emt 0:00:33]} 29. Rxe6+ {[%emt 0:00:36]} fxe6 {[%emt 0:00:01]} 30. Qxe6+ {[%emt 0:00:08]} Kd8 {[%emt 0:00:09]} 31. Qf6+ {[%emt 0:00:10]} 1-0

[Event "Cracovia Festival-A 2023"]
[Site "Krakow"]
[Date "2023.12.31"]
[Round "5.34"]
[White "Babiarz, Arkadiusz"]
[Black "Yezhel, Valiantsin"]
[Result "1-0"]
[ECO "B27"]
[WhiteElo "2129"]
[BlackElo "2311"]
[Annotator "RC"]
[PlyCount "121"]
[EventDate "2023.12.24"]
[EventType "swiss"]
[EventCountry "POL"]
[SourceTitle "playchess.com"]
[Source "ChessBase"]
[SourceQuality "1"]
[TimeControl "40/5400+30:1800+30"]

1. e4 {[%emt 0:00:03]} c5 {[%emt 0:07:08]} 2. Nf3 {[%emt 0:00:07]} g6 {[%emt 0:00:04]} 3. c3 {[%emt 0:01:20]} d5 {[%emt 0:00:28]} 4. exd5 {[%emt 0:00:07]} Qxd5 {[%emt 0:00:04]} 5. d4 {[%emt 0:00:07]} Bg7 {[%emt 0:00:02]} 6. Nbd2 {[%emt 0:00:06]} cxd4 {[%emt 0:01:53]} 7. Bc4 {[%emt 0:00:07]} Qd8 {[%emt 0:07:35]} 8. Nxd4 {[%emt 0:00:09]} Nf6 {[%emt 0:00:15]} 9. O-O {[%emt 0:00:08]} O-O {[%emt 0:00:02]} 10. N2f3 {[%emt 0:00:07]} a6 {[%emt 0:00:12]} 11. a4 {[%emt 0:06:01]} Qc7 {[%emt 0:00:37]} 12. Ba2 {[%emt 0:06:52]} e5 {[%emt 0:00:53]} 13. Nc2 {[%emt 0:00:23]} Nc6 {[%emt 0:00:12]} 14. Re1 {[%emt 0:10:37]} Bg4 {[%emt 0:19:49]} 15. Bg5 {[%emt 0:16:22]} e4 {[%emt 0:20:58]} 16. Bxf6 {[%emt 0:00:27]} exf3 {[%emt 0:00:19]} 17. Ne3 {[%emt 0:22:30]} h5 {[%emt 0:13:42]} 18. Bxg7 {[%emt 0:05:48]} Kxg7 {[%emt 0:00:04]} 19. h3 {[%emt 0:00:58]} Bxh3 {[%emt 0:03:20]} 20. gxh3 {[%emt 0:04:09]} Qf4 {[%emt 0:02:25]} 21. Bd5 {[%emt 0:00:23]} Ne5 {[%emt 0:01:21]} 22. Qd4 {[%emt 0:00:21]} Qg5+ {[%emt 0:00:05]} 23. Kh1 {[%emt 0:03:14]} Rad8 {[%emt 0:02:42]} 24. Rg1 {[%emt 0:02:36]} Qf6 {[%emt 0:00:04]} 25. Rae1 {[%emt 0:02:13]} Rfe8 {[%emt 0:00:03]} 26. h4 {[%emt 0:03:51]} Kh7 {[%emt 0:03:48]} 27. Rg5 {[%emt 0:00:17]} Qe7 {[%emt 0:00:11]} 28. Reg1 {[%emt 0:06:30]} f6 {[%emt 0:00:18]} 29. R5g3 {[%emt 0:00:27]} f5 {[%emt 0:01:04]} 30. Rg5 {[%emt 0:01:41]} Rd6 {[%emt 0:02:44]} 31. Qf4 {[%emt 0:00:49]} Nd3 {[%emt 0:03:37]} 32. Qxf3 {[%emt 0:00:34]} Nxf2+ {[%emt 0:00:04]} 33. Qxf2 {[%emt 0:00:33]} Qxe3 {[%emt 0:00:10]} 34. Qxe3 {[%emt 0:03:26]} Rxe3 {[%emt 0:00:01]} 35. c4 {[%emt 0:01:00]} Rh3+ {[%emt 0:01:07]} 36. Kg2 {[%emt 0:00:00]} Rxh4 {[%emt 0:00:00]} 37. Kf3 {[%emt 0:01:06]} Rb6 {[%emt 0:00:58]} 38. c5 {[%emt 0:00:42]} Rxb2 {[%emt 0:01:57]} 39. Rxg6 {[%emt 0:00:21]} Rg4 {[%emt 0:01:11]} 40. R6xg4 {[%emt 0:00:00]} fxg4+ {[%emt 0:00:00]} 41. Kg3 {[%emt 0:02:48]} Kg6 {[%emt 0:02:35]} 42. Re1 {[%emt 0:03:27]} Kf5 {[%emt 0:03:55]} 43. Re7 {[%emt 0:00:50]} Kf6 {[%emt 0:13:35]} 44. Rxb7 {[%emt 0:00:54]} Rc2 {[%emt 0:00:02]} 45. c6 {[%emt 0:02:06]} Kg5 {[%emt 0:04:08]} 46. Rg7+ {[%emt 0:00:08]} Kf6 {[%emt 0:00:01]} 47. Rg6+ {[%emt 0:01:20]} Kf5 {[%emt 0:00:06]} 48. Rg7 {[%emt 0:03:01]} Rc3+ {[%emt 0:00:24]} 49. Kf2 {[%emt 0:01:58]} h4 {[%emt 0:00:33]} 50. c7 {[%emt 0:00:16]} h3 {[%emt 0:00:34]} 51. Bb7 {[%emt 0:01:12]} g3+ {[%emt 0:00:17]} 52. Ke2 {[%emt 0:00:43]} Kf6 {[%emt 0:02:19]} 53. c8=Q {[%emt 0:00:19]} Rxc8 {[%emt 0:00:06]} 54. Bxc8 {[%emt 0:00:04]} h2 {[%emt 0:00:08]} 55. Bb7 {[%emt 0:00:14]} Kxg7 {[%emt 0:00:08]} 56. Bh1 {[%emt 0:00:11]} Kf6 {[%emt 0:00:19]} 57. Kf3 {[%emt 0:00:06]} Ke5 {[%emt 0:00:04]} 58. Kxg3 {[%emt 0:00:03]} Kd4 {[%emt 0:00:04]} 59. Kxh2 {[%emt 0:00:08]} Kc5 {[%emt 0:00:04]} 60. Kg3 {[%emt 0:00:35]} a5 {[%emt 0:00:08]} 61. Kf4 {[%emt 0:00:09]} 1-0

[Event "Cracovia Festival-A 2023"]
[Site "Krakow"]
[Date "2023.12.31"]
[Round "5.35"]
[White "Kyc, Jerzy"]
[Black "Zarnowski, Krzysztof"]
[Result "1/2-1/2"]
[ECO "C06"]
[WhiteElo "2304"]
[BlackElo "2114"]
[Annotator "RC"]
[PlyCount "40"]
[EventDate "2023.12.24"]
[EventType "swiss"]
[EventCountry "POL"]
[SourceTitle "playchess.com"]
[Source "ChessBase"]
[SourceQuality "1"]
[TimeControl "40/5400+30:1800+30"]

1. e4 {[%emt 0:02:19]} e6 {[%emt 0:00:06]} 2. d4 {[%emt 0:00:13]} d5 {[%emt 0:00:04]} 3. Nd2 {[%emt 0:01:02]} Nf6 {[%emt 0:00:07]} 4. e5 {[%emt 0:00:06]} Nfd7 {[%emt 0:00:04]} 5. Bd3 {[%emt 0:00:05]} c5 {[%emt 0:00:06]} 6. c3 {[%emt 0:00:08]} Nc6 {[%emt 0:00:08]} 7. Ne2 {[%emt 0:00:06]} cxd4 {[%emt 0:00:43]} 8. cxd4 {[%emt 0:00:21]} f6 {[%emt 0:00:12]} 9. exf6 {[%emt 0:00:32]} Nxf6 {[%emt 0:00:22]} 10. Nf3 {[%emt 0:01:13]} Bd6 {[%emt 0:00:19]} 11. O-O {[%emt 0:00:54]} Qc7 {[%emt 0:00:29]} 12. Nc3 {[%emt 0:00:19]} a6 {[%emt 0:00:19]} 13. Bg5 {[%emt 0:13:04]} O-O {[%emt 0:00:19]} 14. Rc1 {[%emt 0:01:04]} Ng4 {[%emt 0:00:11]} 15. h3 {[%emt 0:02:37]} Nh2 {[%emt 0:00:28]} 16. Nxh2 {[%emt 0:00:45]} Bxh2+ {[%emt 0:00:04]} 17. Kh1 {[%emt 0:00:03]} Bf4 {[%emt 0:00:03]} 18. Bxf4 {[%emt 0:00:31]} Qxf4 {[%emt 0:00:04]} 19. Ne2 {[%emt 0:00:16]} Qf6 {[%emt 0:00:07]} 20. f4 {[%emt 0:04:51]} Bd7 {[%emt 0:00:05]} 1/2-1/2

[Event "Cracovia Festival-A 2023"]
[Site "Krakow"]
[Date "2023.12.31"]
[Round "5.36"]
[White "Flak, Pawel"]
[Black "Meurs, Tom"]
[Result "0-1"]
[ECO "E04"]
[WhiteElo "2145"]
[BlackElo "2290"]
[Annotator "RC"]
[PlyCount "66"]
[EventDate "2023.12.24"]
[EventType "swiss"]
[EventCountry "POL"]
[SourceTitle "playchess.com"]
[Source "ChessBase"]
[SourceQuality "1"]
[TimeControl "40/5400+30:1800+30"]

1. d4 {[%emt 0:00:01]} Nf6 {[%emt 0:00:16]} 2. Nf3 {[%emt 0:00:13]} e6 {[%emt 0:00:04]} 3. c4 {[%emt 0:00:15]} d5 {[%emt 0:00:05]} 4. g3 {[%emt 0:00:04]} dxc4 {[%emt 0:00:28]} 5. Bg2 {[%emt 0:00:17]} c5 {[%emt 0:00:10]} 6. Qa4+ {[%emt 0:02:52]} Nbd7 {[%emt 0:11:58]} 7. O-O {[%emt 0:06:18]} a6 {[%emt 0:01:06]} 8. Nc3 {[%emt 0:09:21]} Be7 {[%emt 0:08:52]} 9. dxc5 {[%emt 0:05:14]} Bxc5 {[%emt 0:01:02]} 10. Qxc4 {[%emt 0:03:56]} b5 {[%emt 0:01:00]} 11. Qd3 {[%emt 0:13:30]} Bb7 {[%emt 0:03:26]} 12. a3 {[%emt 0:00:21]} Qe7 {[%emt 0:07:08]} 13. e4 {[%emt 0:12:36]} h6 {[%emt 0:08:34]} 14. e5 {[%emt 0:07:37]} Ng4 {[%emt 0:03:06]} 15. Qe2 {[%emt 0:00:02]} Rd8 {[%emt 0:06:30]} 16. Bf4 {[%emt 0:13:44]} g5 {[%emt 0:02:27]} 17. Ne1 {[%emt 0:05:47]} Bxg2 {[%emt 0:07:35]} 18. Kxg2 {[%emt 0:00:01]} h5 {[%emt 0:05:04]} 19. Bc1 {[%emt 0:05:25]} Ngxe5 {[%emt 0:15:30]} 20. Ne4 {[%emt 0:00:02]} f6 {[%emt 0:00:31]} 21. Bd2 {[%emt 0:03:41]} h4 {[%emt 0:00:24]} 22. Nxc5 {[%emt 0:00:05]} Nxc5 {[%emt 0:01:14]} 23. Bb4 {[%emt 0:01:20]} Qb7+ {[%emt 0:04:02]} 24. Kg1 {[%emt 0:00:27]} Ncd3 {[%emt 0:00:40]} 25. f3 {[%emt 0:01:15]} Qa7+ {[%emt 0:01:23]} 26. Rf2 {[%emt 0:01:34]} hxg3 {[%emt 0:01:19]} 27. hxg3 {[%emt 0:00:07]} Nxf2 {[%emt 0:00:29]} 28. Kg2 {[%emt 0:01:15]} Nfd3 {[%emt 0:02:33]} 29. Nxd3 {[%emt 0:00:28]} Rxd3 {[%emt 0:00:15]} 30. Rc1 {[%emt 0:02:38]} Qd7 {[%emt 0:02:57]} 31. Qe4 {[%emt 0:00:13]} Rd2+ {[%emt 0:00:52]} 32. Kg1 {[%emt 0:00:19]} Qd4+ {[%emt 0:00:17]} 33. Qxd4 {[%emt 0:00:21]} Nxf3+ {[%emt 0:00:06]} 0-1

[Event "Cracovia Festival-A 2023"]
[Site "Krakow"]
[Date "2023.12.31"]
[Round "5.37"]
[White "Biesiadecki, Adam"]
[Black "Gierulski, Kamil"]
[Result "0-1"]
[ECO "E32"]
[WhiteElo "2102"]
[BlackElo "2223"]
[Annotator "RC"]
[PlyCount "102"]
[EventDate "2023.12.24"]
[EventType "swiss"]
[EventCountry "POL"]
[SourceTitle "playchess.com"]
[Source "ChessBase"]
[SourceQuality "1"]
[TimeControl "40/5400+30:1800+30"]

1. d4 {[%emt 0:06:01]} Nf6 {[%emt 0:00:02]} 2. c4 {[%emt 0:00:08]} e6 {[%emt 0:00:01]} 3. Nc3 {[%emt 0:01:04]} Bb4 {[%emt 0:00:04]} 4. Qc2 {[%emt 0:02:20]} O-O {[%emt 0:00:04]} 5. Nf3 {[%emt 0:01:19]} d5 {[%emt 0:00:17]} 6. Bg5 {[%emt 0:03:55]} c5 {[%emt 0:03:11]} 7. e3 {[%emt 0:00:52]} cxd4 {[%emt 0:00:37]} 8. exd4 {[%emt 0:01:02]} dxc4 {[%emt 0:00:49]} 9. Bxc4 {[%emt 0:03:04]} Nc6 {[%emt 0:05:19]} 10. Rd1 {[%emt 0:01:20]} Bd7 {[%emt 0:01:00]} 11. O-O {[%emt 0:01:19]} Bxc3 {[%emt 0:06:11]} 12. bxc3 {[%emt 0:00:53]} Ne7 {[%emt 0:04:23]} 13. Bd3 {[%emt 0:02:49]} Kh8 {[%emt 0:05:05]} 14. Ne5 {[%emt 0:11:22]} Rc8 {[%emt 0:04:50]} 15. Rb1 {[%emt 0:09:07]} b6 {[%emt 0:03:00]} 16. Rfc1 {[%emt 0:11:49]} Ng6 {[%emt 0:05:12]} 17. Bxg6 {[%emt 0:07:01]} fxg6 {[%emt 0:01:29]} 18. Nxd7 {[%emt 0:00:27]} Qxd7 {[%emt 0:00:08]} 19. Bxf6 {[%emt 0:00:10]} gxf6 {[%emt 0:00:40]} 20. Qb3 {[%emt 0:03:04]} Rc6 {[%emt 0:00:46]} 21. Re1 {[%emt 0:01:14]} Rfc8 {[%emt 0:01:26]} 22. Re3 {[%emt 0:00:42]} Qd5 {[%emt 0:02:33]} 23. Qxd5 {[%emt 0:02:07]} exd5 {[%emt 0:00:03]} 24. Rb3 {[%emt 0:00:09]} Kg8 {[%emt 0:01:44]} 25. Kf1 {[%emt 0:00:17]} Kf7 {[%emt 0:00:13]} 26. Ke2 {[%emt 0:00:27]} Re6 {[%emt 0:00:31]} 27. Rxe6 {[%emt 0:00:20]} Kxe6 {[%emt 0:00:08]} 28. Kd3 {[%emt 0:00:41]} Kd7 {[%emt 0:02:18]} 29. Rb2 {[%emt 0:02:57]} Re8 {[%emt 0:00:36]} 30. c4 {[%emt 0:00:30]} dxc4+ {[%emt 0:00:45]} 31. Kxc4 {[%emt 0:00:06]} Kc6 {[%emt 0:00:55]} 32. Kd3 {[%emt 0:00:11]} Re1 {[%emt 0:00:37]} 33. f3 {[%emt 0:03:44]} h5 {[%emt 0:02:10]} 34. Kd2 {[%emt 0:01:01]} Ra1 {[%emt 0:01:05]} 35. Kd3 {[%emt 0:01:30]} a6 {[%emt 0:03:48]} 36. h3 {[%emt 0:02:11]} b5 {[%emt 0:00:18]} 37. Rc2+ {[%emt 0:02:35]} Kd6 {[%emt 0:00:17]} 38. Ke3 {[%emt 0:01:43]} Rb1 {[%emt 0:03:33]} 39. Kd3 {[%emt 0:00:42]} a5 {[%emt 0:01:17]} 40. Ke3 {[%emt 0:00:00]} a4 {[%emt 0:00:00]} 41. Kd3 {[%emt 0:09:05]} h4 {[%emt 0:02:43]} 42. a3 {[%emt 0:01:07]} Ra1 {[%emt 0:03:43]} 43. Rc8 {[%emt 0:04:45]} Rxa3+ {[%emt 0:02:21]} 44. Ke4 {[%emt 0:00:04]} b4 {[%emt 0:02:20]} 45. Rb8 {[%emt 0:00:17]} b3 {[%emt 0:00:20]} 46. Rb6+ {[%emt 0:00:25]} Kc7 {[%emt 0:00:24]} 47. Rb4 {[%emt 0:00:10]} Ra2 {[%emt 0:00:56]} 48. Kd5 {[%emt 0:00:10]} b2 {[%emt 0:02:09]} 49. Ke6 {[%emt 0:00:28]} a3 {[%emt 0:00:36]} 50. d5 {[%emt 0:00:07]} Ra1 {[%emt 0:00:23]} 51. d6+ {[%emt 0:00:05]} Kc6 {[%emt 0:00:14]} 0-1

[Event "Cracovia Festival-A 2023"]
[Site "Krakow"]
[Date "2023.12.31"]
[Round "5.38"]
[White "Jaskolka, Tomasz"]
[Black "Jedraszek, Pawel"]
[Result "1-0"]
[ECO "E62"]
[WhiteElo "2222"]
[BlackElo "2124"]
[Annotator "RC"]
[PlyCount "77"]
[EventDate "2023.12.24"]
[EventType "swiss"]
[EventCountry "POL"]
[SourceTitle "playchess.com"]
[Source "ChessBase"]
[SourceQuality "1"]
[TimeControl "40/5400+30:1800+30"]

1. d4 {[%emt 0:01:11]} Nf6 {[%emt 0:00:23]} 2. c4 {[%emt 0:00:16]} g6 {[%emt 0:00:28]} 3. g3 {[%emt 0:01:18]} Bg7 {[%emt 0:00:40]} 4. Bg2 {[%emt 0:00:05]} O-O {[%emt 0:00:18]} 5. Nc3 {[%emt 0:00:07]} d6 {[%emt 0:00:39]} 6. Nf3 {[%emt 0:00:11]} Nc6 {[%emt 0:01:10]} 7. O-O {[%emt 0:00:09]} Bf5 {[%emt 0:02:02]} 8. d5 {[%emt 0:01:49]} Na5 {[%emt 0:00:16]} 9. b3 {[%emt 0:00:36]} c5 {[%emt 0:09:04]} 10. Qe1 {[%emt 0:12:25]} a6 {[%emt 0:03:49]} 11. Bd2 {[%emt 0:02:08]} b5 {[%emt 0:05:29]} 12. e4 {[%emt 0:02:34]} Bg4 {[%emt 0:00:22]} 13. Rb1 {[%emt 0:02:56]} Nd7 {[%emt 0:10:03]} 14. Nd1 {[%emt 0:06:50]} Nb7 {[%emt 0:02:02]} 15. Ne3 {[%emt 0:01:16]} Bxf3 {[%emt 0:01:19]} 16. Bxf3 {[%emt 0:00:24]} b4 {[%emt 0:03:40]} 17. h4 {[%emt 0:05:58]} a5 {[%emt 0:05:14]} 18. h5 {[%emt 0:00:12]} a4 {[%emt 0:01:47]} 19. Kg2 {[%emt 0:01:04]} axb3 {[%emt 0:00:50]} 20. axb3 {[%emt 0:00:04]} Ra3 {[%emt 0:02:22]} 21. hxg6 {[%emt 0:01:38]} hxg6 {[%emt 0:00:09]} 22. Rh1 {[%emt 0:04:24]} Ne5 {[%emt 0:18:24]} 23. Qg1 {[%emt 0:10:14]} e6 {[%emt 0:03:52]} 24. Qh2 {[%emt 0:00:55]} Re8 {[%emt 0:00:25]} 25. Qh7+ {[%emt 0:19:10]} Kf8 {[%emt 0:00:01]} 26. Rh4 {[%emt 0:06:48]} Ra2 {[%emt 0:02:39]} 27. Rd1 {[%emt 0:02:36]} g5 {[%emt 0:03:39]} 28. Rh6 {[%emt 0:00:46]} Bxh6 {[%emt 0:05:02]} 29. Qxh6+ {[%emt 0:00:07]} Ke7 {[%emt 0:00:13]} 30. dxe6 {[%emt 0:00:21]} fxe6 {[%emt 0:01:51]} 31. Qg7+ {[%emt 0:00:32]} Nf7 {[%emt 0:00:05]} 32. Nd5+ {[%emt 0:00:38]} exd5 {[%emt 0:01:14]} 33. Bxg5+ {[%emt 0:00:29]} Kd7 {[%emt 0:00:02]} 34. Bg4+ {[%emt 0:01:12]} Kc6 {[%emt 0:00:27]} 35. Bxd8 {[%emt 0:01:23]} Nbxd8 {[%emt 0:00:01]} 36. exd5+ {[%emt 0:02:12]} Kb6 {[%emt 0:00:30]} 37. Qf6 {[%emt 0:01:16]} Ra7 {[%emt 0:02:46]} 38. Rh1 {[%emt 0:00:57]} Ree7 {[%emt 0:04:21]} 39. Rh7 {[%emt 0:00:59]} 1-0

[Event "Cracovia Festival-A 2023"]
[Site "Krakow"]
[Date "2023.12.31"]
[Round "5.39"]
[White "Wojdak, Jan"]
[Black "Kaliszuk, Kamil"]
[Result "1-0"]
[ECO "C02"]
[WhiteElo "2219"]
[BlackElo "2107"]
[Annotator "RC"]
[PlyCount "81"]
[EventDate "2023.12.24"]
[EventType "swiss"]
[EventCountry "POL"]
[SourceTitle "playchess.com"]
[Source "ChessBase"]
[SourceQuality "1"]
[TimeControl "40/5400+30:1800+30"]

1. e4 {[%emt 0:00:02]} e6 {[%emt 0:03:09]} 2. d4 {[%emt 0:00:07]} d5 {[%emt 0:00:07]} 3. e5 {[%emt 0:01:13]} c5 {[%emt 0:00:44]} 4. c3 {[%emt 0:00:04]} Nc6 {[%emt 0:00:09]} 5. Nf3 {[%emt 0:00:04]} Bd7 {[%emt 0:00:44]} 6. Be2 {[%emt 0:04:20]} Nge7 {[%emt 0:09:36]} 7. Na3 {[%emt 0:00:50]} Ng6 {[%emt 0:08:14]} 8. Nc2 {[%emt 0:09:07]} Be7 {[%emt 0:06:38]} 9. g3 {[%emt 0:01:53]} O-O {[%emt 0:07:48]} 10. h4 {[%emt 0:00:24]} cxd4 {[%emt 0:00:26]} 11. cxd4 {[%emt 0:00:14]} f6 {[%emt 0:00:25]} 12. h5 {[%emt 0:01:06]} Nh8 {[%emt 0:04:29]} 13. h6 {[%emt 0:15:26]} g6 {[%emt 0:03:43]} 14. exf6 {[%emt 0:02:51]} Bxf6 {[%emt 0:00:22]} 15. Bf4 {[%emt 0:05:54]} Nf7 {[%emt 0:06:35]} 16. Qd2 {[%emt 0:03:43]} Rc8 {[%emt 0:05:24]} 17. Kf1 {[%emt 0:03:55]} Be7 {[%emt 0:09:34]} 18. Kg2 {[%emt 0:07:56]} Qa5 {[%emt 0:05:51]} 19. Qd1 {[%emt 0:17:04]} Qb6 {[%emt 0:04:14]} 20. b3 {[%emt 0:02:54]} Nd6 {[%emt 0:06:00]} 21. Bd3 {[%emt 0:03:11]} Ne4 {[%emt 0:04:38]} 22. Be3 {[%emt 0:04:32]} Nc3 {[%emt 0:02:46]} 23. Qe1 {[%emt 0:01:14]} Nxa2 {[%emt 0:02:18]} 24. Bxg6 {[%emt 0:12:03]} hxg6 {[%emt 0:04:09]} 25. Rxa2 {[%emt 0:00:28]} Qxb3 {[%emt 0:00:41]} 26. Qa1 {[%emt 0:01:08]} Qd3 {[%emt 0:00:20]} 27. Nfe1 {[%emt 0:00:24]} Qf5 {[%emt 0:01:13]} 28. f3 {[%emt 0:01:03]} Kh7 {[%emt 0:00:42]} 29. g4 {[%emt 0:00:14]} Qf7 {[%emt 0:00:05]} 30. Qb1 {[%emt 0:00:43]} b6 {[%emt 0:00:27]} 31. Qd1 {[%emt 0:01:11]} e5 {[%emt 0:01:24]} 32. Qd2 {[%emt 0:00:38]} e4 {[%emt 0:00:36]} 33. fxe4 {[%emt 0:00:27]} dxe4 {[%emt 0:00:04]} 34. d5 {[%emt 0:00:16]} Bxg4 {[%emt 0:00:22]} 35. dxc6 {[%emt 0:00:47]} Qxa2 {[%emt 0:00:10]} 36. Qd4 {[%emt 0:00:13]} Bf6 {[%emt 0:00:32]} 37. Qd2 {[%emt 0:00:45]} Rxc6 {[%emt 0:01:11]} 38. Rf1 {[%emt 0:00:12]} Qe6 {[%emt 0:00:08]} 39. Nd4 {[%emt 0:00:22]} Bf3+ {[%emt 0:02:01]} 40. Nexf3 {[%emt 0:00:00]} Bxd4 {[%emt 0:00:00]} 41. Ng5+ {[%emt 0:00:23]} 1-0